lending/lending_fUSD_20240410
["ID","MTS","AMOUNT","RATE_DAILY","PERIOD"]
[322091070,1712757076606,-587.11,0.00056027,120]
[322091071,1712757076616,-500.0,0.00056027,120]
[322091072,1712757076625,-752.16,0.00056027,120]
[322091073,1712757076636,-799.99,0.00056027,120]
[322091074,1712757076646,-1250.0,0.00056027,120]
[322091075,1712757076657,-836.75,0.00056027,120]
[322091076,1712757076667,-500.0,0.00056027,120]
[322091077,1712757076678,-605.43,0.00056027,120]
[322091078,1712757076689,-1130.05,0.00056027,120]
[322091079,1712757076699,-599.24440787,0.00056027,120]
[322091080,1712757076710,-903.63,0.00056027,120]
[322091081,1712757076719,-500.0,0.00056027,120]
[322091082,1712757076729,-500.0,0.00056027,120]
[322091083,1712757076739,-500.0,0.00056027,120]
[322091084,1712757076752,-631.16,0.00056027,120]
[322091085,1712757076762,-621.38,0.00056027,120]
[322091086,1712757076773,-2417.1,0.00056027,120]
[322091087,1712757076784,-500.0,0.00056027,120]
[322091088,1712757076794,-1028.81,0.00056027,120]
[322091089,1712757076803,-500.0,0.00056027,120]
[322091090,1712757076814,-1163.25,0.00056027,120]
[322091091,1712757076824,-811.61,0.00056027,120]
[322091092,1712757076835,-1531.74,0.00056027,120]
[322091093,1712757076845,-267.27260895,0.00056027,120]
[322091094,1712757076855,-698.73,0.00056027,120]
[322091095,1712757076866,-6390.8,0.00056086,117]
[322091096,1712757076878,-500.0,0.00056109,120]
[322091097,1712757076890,-1475.0,0.00056109,120]
[322091098,1712757076903,-640.61,0.00056109,120]
[322091099,1712757076913,-3449.29,0.00056109,120]
[322091100,1712757076923,-503.38,0.00056109,120]
[322091101,1712757076934,-670.88,0.00056109,120]
[322091102,1712757076944,-1048.49,0.00056109,120]
[322091103,1712757076955,-710.67,0.00056109,120]
[322091104,1712757076966,-509.52,0.00056109,120]
[322091105,1712757076976,-1705.6,0.00056109,120]
[322091106,1712757076986,-718.41,0.00056109,120]
[322091107,1712757076999,-500.0,0.00056109,120]
[322091108,1712757077010,-500.0,0.00056109,120]
[322091109,1712757077020,-4568.49,0.00056109,120]
[322091110,1712757077029,-1357.53,0.00056109,120]
[322091111,1712757077038,-566.8,0.00056109,120]
[322091112,1712757077048,-574.96,0.00056109,120]
[322091113,1712757077057,-429.44,0.00056109,120]
[322091114,1712757077067,-239.7,0.00056109,120]
[322091115,1712757077077,-500.0,0.00056109,120]
[322091116,1712757077086,-4253.82,0.00056109,120]
[322091117,1712757077097,-1535.71,0.00056109,120]
[322091118,1712757077108,-663.78,0.00056109,120]
[322091119,1712757077118,-555.16,0.00056109,21]
[322091120,1712757077128,-500.0,0.00056109,120]
[322091121,1712757077137,-975.91,0.00056109,120]
[322091122,1712757077147,-500.0,0.00056109,120]
[322091123,1712757077157,-500.0,0.00056109,120]
[322091124,1712757077167,-500.0,0.00056109,120]
[322091125,1712757077177,-1859.65,0.00056109,120]
[322091126,1712757077186,-587.11,0.00056109,120]
[322091127,1712757077196,-500.0,0.00056109,120]
[322091128,1712757077206,-752.16,0.00056109,120]
[322091129,1712757077215,-799.99,0.00056109,120]
[322091130,1712757077225,-1250.0,0.00056109,120]
[322091131,1712757077284,-836.75,0.00056109,120]
[322091132,1712757077295,-500.0,0.00056109,120]
[322091133,1712757077306,-605.43,0.00056109,120]
[322091134,1712757077317,-1130.05,0.00056109,120]
[322091135,1712757077327,-903.63,0.00056109,120]
[322091136,1712757077338,-500.0,0.00056109,120]
[322091137,1712757077349,-500.0,0.00056109,120]
[322091138,1712757077359,-500.0,0.00056109,120]
[322091139,1712757077369,-631.16,0.00056109,120]
[322091140,1712757077379,-621.38,0.00056109,120]
[322091141,1712757077390,-2417.1,0.00056109,120]
[322091142,1712757077401,-500.0,0.00056109,120]
[322091143,1712757077412,-1028.81,0.00056109,120]
[322091144,1712757077422,-500.0,0.00056109,120]
[322091145,1712757077431,-1163.25,0.00056109,120]
[322091146,1712757077441,-811.61,0.00056109,120]
[322091147,1712757077451,-1531.74,0.00056109,120]
[322091148,1712757077462,-698.73,0.00056109,120]
[322091149,1712757077472,-500.0,0.00056164,120]
[322091150,1712757077482,-500.0,0.00056191,120]
[322091151,1712757077494,-1475.0,0.00056191,120]
[322091152,1712757077505,-640.61,0.00056191,120]
[322091153,1712757077514,-3449.29,0.00056191,120]
[322091154,1712757077524,-503.38,0.00056191,120]
[322091155,1712757077534,-670.88,0.00056191,120]
[322091156,1712757077544,-1048.49,0.00056191,120]
[322091157,1712757077555,-710.67,0.00056191,120]
[322091158,1712757077566,-509.52,0.00056191,120]
[322091159,1712757077576,-1705.6,0.00056191,120]
[322091160,1712757077587,-718.41,0.00056191,120]
[322091161,1712757077596,-500.0,0.00056191,120]
[322091162,1712757077607,-500.0,0.00056191,120]
[322091163,1712757077617,-4568.49,0.00056191,120]
[322091164,1712757077628,-1357.53,0.00056191,120]
[322091165,1712757077638,-566.8,0.00056191,120]
[322091166,1712757077648,-574.96,0.00056191,120]
[322091167,1712757077658,-500.0,0.00056191,120]
[322091168,1712757077669,-4253.82,0.00056191,120]
[322091169,1712757077679,-1535.71,0.00056191,120]
[322091170,1712757077689,-663.78,0.00056191,120]
[322091171,1712757077700,-555.16,0.00056191,21]
[322091172,1712757077710,-500.0,0.00056191,120]
[322091173,1712757077720,-975.91,0.00056191,120]
[322091174,1712757077730,-500.0,0.00056191,120]
[322091175,1712757077740,-360.86628111,0.00056191,120]
[322091176,1712757077751,-500.0,0.00056191,120]
[322091177,1712757077762,-1859.65,0.00056191,120]
[322091178,1712757077772,-587.11,0.00056191,120]
[322091179,1712757077782,-500.0,0.00056191,120]
[322091180,1712757077792,-752.16,0.00056191,120]
[322091181,1712757077802,-799.99,0.00056191,120]
[322091182,1712757077813,-1250.0,0.00056191,120]
[322091183,1712757077823,-836.75,0.00056191,120]
[322091184,1712757077834,-500.0,0.00056191,120]
[322091185,1712757077844,-605.43,0.00056191,120]
[322091186,1712757077854,-1130.05,0.00056191,120]
[322091187,1712757077865,-903.63,0.00056191,120]
[322091188,1712757077877,-500.0,0.00056191,120]
[322091189,1712757078031,-500.0,0.00056191,120]
[322091190,1712757078042,-500.0,0.00056191,120]
[322091191,1712757078053,-631.16,0.00056191,120]
[322091192,1712757078063,-621.38,0.00056191,120]
[322091193,1712757078074,-2417.1,0.00056191,120]
[322091194,1712757078084,-500.0,0.00056191,120]
[322091195,1712757078094,-1028.81,0.00056191,120]
[322091196,1712757078104,-500.0,0.00056191,120]
[322091197,1712757078115,-1163.25,0.00056191,120]
[322091198,1712757078126,-811.61,0.00056191,120]
[322091199,1712757078137,-1531.74,0.00056191,120]
[322091200,1712757078148,-698.73,0.00056191,120]
[322091201,1712757078160,-449.87,0.00056236,2]
[322091202,1712757078170,-242.71,0.00056236,2]
[322091203,1712757078180,-308.64,0.00056236,2]
[322091204,1712757078191,-500.0,0.00056273,120]
[322091205,1712757078202,-1475.0,0.00056273,120]
[322091206,1712757078213,-640.61,0.00056273,120]
[322091207,1712757078223,-3449.29,0.00056273,120]
[322091208,1712757078233,-503.38,0.00056273,120]
[322091209,1712757078247,-670.88,0.00056273,120]
[322091210,1712757078259,-1048.49,0.00056273,120]
[322091211,1712757078270,-710.67,0.00056273,120]
[322091212,1712757078282,-509.52,0.00056273,120]
[322091213,1712757078293,-1705.6,0.00056273,120]
[322091214,1712757078303,-718.41,0.00056273,120]
[322091215,1712757078313,-500.0,0.00056273,120]
[322091216,1712757078324,-500.0,0.00056273,120]
[322091217,1712757078334,-4568.49,0.00056273,120]
[322091218,1712757078344,-1357.53,0.00056273,120]
[322091219,1712757078355,-566.8,0.00056273,120]
[322091220,1712757078364,-574.96,0.00056273,120]
[322091221,1712757078375,-313.0,0.00056273,120]
[322091222,1712757078386,-4253.82,0.00056273,120]
[322091223,1712757078396,-1535.71,0.00056273,120]
[322091224,1712757078406,-663.78,0.00056273,120]
[322091225,1712757078416,-555.16,0.00056273,21]
[322091226,1712757078427,-500.0,0.00056273,120]
[322091227,1712757078437,-975.91,0.00056273,120]
[322091228,1712757078447,-500.0,0.00056273,120]
[322091229,1712757078457,-500.0,0.00056273,120]
[322091230,1712757078467,-1859.65,0.00056273,120]
[322091231,1712757078476,-587.11,0.00056273,120]
[322091232,1712757078486,-752.16,0.00056273,120]
[322091233,1712757078499,-500.0,0.00056273,120]
[322091234,1712757078509,-799.99,0.00056273,120]
[322091235,1712757078520,-1250.0,0.00056273,120]
[322091236,1712757078530,-500.0,0.00056273,120]
[322091237,1712757078540,-836.75,0.00056273,120]
[322091238,1712757078551,-605.43,0.00056273,120]
[322091239,1712757078560,-1130.05,0.00056273,120]
[322091240,1712757078572,-903.63,0.00056273,120]
[322091241,1712757078582,-500.0,0.00056273,120]
[322091242,1712757078593,-500.0,0.00056273,120]
[322091243,1712757078603,-402.18,0.00056273,120]
[322091244,1712757078614,-621.38,0.00056273,120]
[322091245,1712757078624,-631.16,0.00056273,120]
[322091246,1712757078634,-2417.1,0.00056273,120]
[322091247,1712757078644,-500.0,0.00056273,120]
[322091248,1712757078654,-1028.81,0.00056273,120]
[322091249,1712757078664,-500.0,0.00056273,120]
[322091250,1712757078675,-1163.25,0.00056273,120]
[322091251,1712757078685,-811.61,0.00056273,120]
[322091252,1712757078695,-1531.74,0.00056273,120]
[322091253,1712757078706,-698.73,0.00056273,120]
[322091254,1712757078716,-164.0,0.00056309,28]
[322091255,1712757078726,-278.33,0.00056353,2]
[322091256,1712757078736,-500.0,0.00056356,120]
[322091257,1712757078750,-1475.0,0.00056356,120]
[322091258,1712757078760,-640.61,0.00056356,120]
[322091259,1712757078770,-3449.29,0.00056356,120]
[322091260,1712757078780,-503.38,0.00056356,120]
[322091261,1712757078790,-670.88,0.00056356,120]
[322091262,1712757078801,-1048.49,0.00056356,120]
[322091263,1712757078812,-710.67,0.00056356,120]
[322091264,1712757078822,-509.52,0.00056356,120]
[322091265,1712757078831,-1705.6,0.00056356,120]
[322091266,1712757078842,-718.41,0.00056356,120]
[322091267,1712757078852,-500.0,0.00056356,120]
[322091268,1712757078863,-500.0,0.00056356,120]
[322091269,1712757078877,-4568.49,0.00056356,120]
[322091270,1712757078889,-1357.53,0.00056356,120]
[322091271,1712757078900,-566.8,0.00056356,120]
[322091272,1712757078910,-574.96,0.00056356,120]
[322091273,1712757078919,-4253.82,0.00056356,120]
[322091274,1712757078931,-1535.71,0.00056356,120]
[322091275,1712757078942,-663.78,0.00056356,120]
[322091276,1712757078952,-555.16,0.00056356,21]
[322091277,1712757078964,-346.3997639,0.00056356,120]
[322091278,1712757078974,-975.91,0.00056356,120]
[322091279,1712757078985,-377.61,0.00056356,120]
[322091280,1712757078998,-500.0,0.00056356,120]
[322091281,1712757079010,-1859.65,0.00056356,120]
[322091282,1712757079021,-587.11,0.00056356,120]
[322091283,1712757079032,-752.16,0.00056356,120]
[322091284,1712757079042,-500.0,0.00056356,120]
[322091285,1712757079054,-799.99,0.00056356,120]
[322091286,1712757079065,-1250.0,0.00056356,120]
[322091287,1712757079075,-500.0,0.00056356,120]
[322091288,1712757079086,-836.75,0.00056356,120]
[322091289,1712757079096,-605.43,0.00056356,120]
[322091290,1712757079106,-1130.05,0.00056356,120]
[322091291,1712757079117,-500.0,0.00056356,120]
[322091292,1712757079127,-903.63,0.00056356,120]
[322091293,1712757079139,-500.0,0.00056356,120]
[322091294,1712757079149,-621.38,0.00056356,120]
[322091295,1712757079161,-631.16,0.00056356,120]
[322091296,1712757079170,-2417.1,0.00056356,120]
[322091297,1712757079181,-500.0,0.00056356,120]
[322091298,1712757079191,-1028.81,0.00056356,120]
[322091299,1712757079201,-289.3029291,0.00056356,120]
[322091300,1712757079212,-1163.25,0.00056356,120]
[322091301,1712757079222,-811.61,0.00056356,120]
[322091302,1712757079233,-1531.74,0.00056356,120]
[322091303,1712757079244,-698.73,0.00056356,120]
[322091304,1712757079257,-419.0,0.000564,30]
[322091305,1712757079268,-220.86202918,0.00056438,120]
[322091306,1712757079278,-1475.0,0.00056438,120]
[322091307,1712757079288,-640.61,0.00056438,120]
[322091308,1712757079298,-3449.29,0.00056438,120]
[322091309,1712757079309,-503.38,0.00056438,120]
[322091310,1712757079319,-670.88,0.00056438,120]
[322091311,1712757079330,-1048.49,0.00056438,120]
[322091312,1712757079341,-710.67,0.00056438,120]
[322091313,1712757079350,-509.52,0.00056438,120]
[322091314,1712757079361,-1705.6,0.00056438,120]
[322091315,1712757079372,-718.41,0.00056438,120]
[322091316,1712757079383,-500.0,0.00056438,120]
[322091317,1712757079393,-500.0,0.00056438,120]
[322091318,1712757079403,-4568.49,0.00056438,120]
[322091319,1712757079413,-1357.53,0.00056438,120]
[322091320,1712757079423,-566.8,0.00056438,120]
[322091321,1712757079433,-574.96,0.00056438,120]
[322091322,1712757079443,-4253.82,0.00056438,120]
[322091323,1712757079452,-1535.71,0.00056438,120]
[322091324,1712757079463,-663.78,0.00056438,120]
[322091325,1712757079473,-555.16,0.00056438,21]
[322091326,1712757079483,-975.91,0.00056438,120]
[322091327,1712757079495,-500.0,0.00056438,120]
[322091328,1712757079506,-1859.65,0.00056438,120]
[322091329,1712757079516,-587.11,0.00056438,120]
[322091330,1712757079527,-752.16,0.00056438,120]
[322091331,1712757079537,-500.0,0.00056438,120]
[322091332,1712757079547,-799.99,0.00056438,120]
[322091333,1712757079556,-1250.0,0.00056438,120]
[322091334,1712757079566,-500.0,0.00056438,120]
[322091335,1712757079576,-836.75,0.00056438,120]
[322091336,1712757079586,-605.43,0.00056438,120]
[322091337,1712757079597,-1130.05,0.00056438,120]
[322091338,1712757079608,-500.0,0.00056438,120]
[322091339,1712757079619,-421.12,0.00056438,120]
[322091340,1712757079629,-903.63,0.00056438,120]
[322091341,1712757079639,-621.38,0.00056438,120]
[322091342,1712757079650,-631.16,0.00056438,120]
[322091343,1712757079660,-2417.1,0.00056438,120]
[322091344,1712757079670,-500.0,0.00056438,120]
[322091345,1712757079680,-1028.81,0.00056438,120]
[322091346,1712757079690,-1163.25,0.00056438,120]
[322091347,1712757079699,-811.61,0.00056438,120]
[322091348,1712757079710,-1531.74,0.00056438,120]
[322091349,1712757079720,-698.73,0.00056438,120]
[322091350,1712757079729,-264.71111111,0.00056438,120]
[322091351,1712757079739,-5006.3283612,0.00056461,2]
[322091352,1712757079753,-39149.0444577,0.00056461,2]
[322091353,1712757079763,-1324.52191,0.00056461,2]
[322091354,1712757079773,-1339.09537598,0.000565,15]
[322091355,1712757079784,-1000000.0,0.000565,120]
[322091356,1712757079795,-240.0,0.000565,107]
[322091357,1712757079805,-1475.0,0.0005652,120]
[322091358,1712757079815,-640.61,0.0005652,120]
[322091359,1712757079825,-3449.29,0.0005652,120]
[322091360,1712757079836,-503.38,0.0005652,120]
[322091361,1712757079846,-670.88,0.0005652,120]
[322091362,1712757079856,-1048.49,0.0005652,120]
[322091363,1712757079867,-710.67,0.0005652,120]
[322091364,1712757079881,-509.52,0.0005652,120]
[322091365,1712757079893,-1705.6,0.0005652,120]
[322091366,1712757079903,-718.41,0.0005652,120]
[322091367,1712757079914,-500.0,0.0005652,120]
[322091368,1712757079925,-500.0,0.0005652,120]
[322091369,1712757079938,-4568.49,0.0005652,120]
[322091370,1712757079948,-1357.53,0.0005652,120]
[322091371,1712757079959,-566.8,0.0005652,120]
[322091372,1712757079968,-574.96,0.0005652,120]
[322091373,1712757079978,-4253.82,0.0005652,120]
[322091374,1712757079988,-1535.71,0.0005652,120]
[322091375,1712757080003,-663.78,0.0005652,120]
[322091376,1712757080013,-555.16,0.0005652,21]
[322091377,1712757080025,-975.91,0.0005652,120]
[322091378,1712757080035,-500.0,0.0005652,120]
[322091379,1712757080045,-1859.65,0.0005652,120]
[322091380,1712757080055,-587.11,0.0005652,120]
[322091381,1712757080065,-752.16,0.0005652,120]
[322091382,1712757080076,-500.0,0.0005652,120]
[322091383,1712757080086,-799.99,0.0005652,120]
[322091384,1712757080096,-1250.0,0.0005652,120]
[322091385,1712757080106,-500.0,0.0005652,120]
[322091386,1712757080152,-836.75,0.0005652,120]
[322091387,1712757080162,-605.43,0.0005652,120]
[322091388,1712757080172,-1130.05,0.0005652,120]
[322091389,1712757080181,-500.0,0.0005652,120]
[322091390,1712757080191,-903.63,0.0005652,120]
[322091391,1712757080202,-621.38,0.0005652,120]
[322091392,1712757080212,-631.16,0.0005652,120]
[322091393,1712757080222,-2417.1,0.0005652,120]
[322091394,1712757080232,-333.29,0.0005652,120]
[322091395,1712757080242,-1028.81,0.0005652,120]
[322091396,1712757080254,-1163.25,0.0005652,120]
[322091397,1712757080265,-811.61,0.0005652,120]
[322091398,1712757080275,-1531.74,0.0005652,120]
[322091399,1712757080286,-698.73,0.0005652,120]
[322091400,1712757080296,-150.0,0.0005659,40]
[322091401,1712757080305,-1475.0,0.00056602,120]
[322091402,1712757080315,-640.61,0.00056602,120]
[322091403,1712757080325,-3449.29,0.00056602,120]
[322091404,1712757080335,-503.38,0.00056602,120]
[322091405,1712757080345,-670.88,0.00056602,120]
[322091406,1712757080356,-1048.49,0.00056602,120]
[322091407,1712757080366,-710.67,0.00056602,120]
[322091408,1712757080376,-509.52,0.00056602,120]
[322091409,1712757080386,-1705.6,0.00056602,120]
[322091410,1712757080396,-718.41,0.00056602,120]
[322091411,1712757080406,-162.32196967,0.00056602,120]
[322091412,1712757080417,-500.0,0.00056602,120]
[322091413,1712757080427,-4568.49,0.00056602,120]
[322091414,1712757080437,-1357.53,0.00056602,120]
[322091415,1712757080447,-566.8,0.00056602,120]
[322091416,1712757080457,-574.96,0.00056602,120]
[322091417,1712757080466,-4253.82,0.00056602,120]
[322091418,1712757080476,-1535.71,0.00056602,120]
[322091419,1712757080486,-663.78,0.00056602,120]
[322091420,1712757080498,-555.16,0.00056602,21]
[322091421,1712757080508,-975.91,0.00056602,120]
[322091422,1712757080518,-500.0,0.00056602,120]
[322091423,1712757080529,-1859.65,0.00056602,120]
[322091424,1712757080539,-587.11,0.00056602,120]
[322091425,1712757080549,-752.16,0.00056602,120]
[322091426,1712757080560,-621.11823873,0.00056602,120]
[322091427,1712757080570,-799.99,0.00056602,120]
[322091428,1712757080580,-1250.0,0.00056602,120]
[322091429,1712757080590,-620.44549154,0.00056602,120]
[322091430,1712757080601,-836.75,0.00056602,120]
[322091431,1712757080611,-605.43,0.00056602,120]
[322091432,1712757080621,-1130.05,0.00056602,120]
[322091433,1712757080631,-622.65,0.00056602,120]
[322091434,1712757080641,-903.63,0.00056602,120]
[322091435,1712757080651,-621.38,0.00056602,120]
[322091436,1712757080662,-631.16,0.00056602,120]
[322091437,1712757080672,-2417.1,0.00056602,120]
[322091438,1712757080682,-1028.81,0.00056602,120]
[322091439,1712757080692,-1163.25,0.00056602,120]
[322091440,1712757080702,-811.61,0.00056602,120]
[322091441,1712757080713,-1531.74,0.00056602,120]
[322091442,1712757080724,-698.73,0.00056602,120]
[322091443,1712757080735,-1475.0,0.00056684,120]
[322091444,1712757080750,-640.76,0.00056684,120]
[322091445,1712757080761,-3449.45288203,0.00056684,120]
[322091446,1712757080771,-503.56,0.00056684,120]
[322091447,1712757080782,-671.00526205,0.00056684,120]
[322091448,1712757080793,-1048.56538524,0.00056684,120]
[322091449,1712757080803,-710.86,0.00056684,120]
[322091450,1712757080814,-509.55440402,0.00056684,120]
[322091451,1712757080824,-1705.72052423,0.00056684,120]
[322091452,1712757080835,-718.42,0.00056684,120]
[322091453,1712757080845,-423.72,0.00056684,120]
[322091454,1712757080856,-4568.51696897,0.00056684,120]
[322091455,1712757080867,-1357.59384899,0.00056684,120]
[322091456,1712757080879,-566.83,0.00056684,120]
[322091457,1712757080890,-574.97,0.00056684,120]
[322091458,1712757080900,-4253.85335489,0.00056684,120]
[322091459,1712757080910,-1535.90000001,0.00056684,120]
[322091460,1712757080920,-663.88,0.00056684,120]
[322091461,1712757080931,-555.39,0.00056684,21]
[322091462,1712757080942,-976.04117685,0.00056684,120]
[322091463,1712757080952,-192.03,0.00056684,120]
[322091464,1712757080963,-1859.68490964,0.00056684,120]
[322091465,1712757080973,-587.11683372,0.00056684,120]
[322091466,1712757080983,-752.39351305,0.00056684,120]
[322091467,1712757080994,-800.07,0.00056684,120]
[322091468,1712757081006,-1250.0,0.00056684,120]
[322091469,1712757081016,-836.84315078,0.00056684,120]
[322091470,1712757081027,-605.57,0.00056684,120]
[322091471,1712757081037,-1130.07,0.00056684,120]
[322091472,1712757081048,-903.73754694,0.00056684,120]
[322091473,1712757081059,-621.58089563,0.00056684,120]
[322091474,1712757081072,-631.1716879,0.00056684,120]
[322091475,1712757081082,-2417.15593844,0.00056684,120]
[322091476,1712757081092,-1028.9,0.00056684,120]
[322091477,1712757081102,-1163.37237837,0.00056684,120]
[322091478,1712757081111,-811.74622629,0.00056684,120]
[322091479,1712757081120,-1531.89,0.00056684,120]
[322091480,1712757081130,-698.81274638,0.00056684,120]
[322091481,1712757081139,-151.0,0.0005674,120]
[322091482,1712757081150,-151.91320181,0.00056769,70]
[322091483,1712757081159,-4519.74589492,0.000568,110]
[322091484,1712757081170,-4163.3589361,0.00056961,2]
[322091485,1712757081180,-32557.0982012,0.00056961,2]
[322091486,1712757081190,-1102.1496845,0.00056961,2]
[322091487,1712757081200,-100000.0,0.00057,57]
[322091488,1712757081210,-502.0,0.00057,120]
[322091489,1712757081220,-150.0,0.00057,120]
[322091490,1712757081229,-150.0,0.00057,120]
[322091491,1712757081238,-1000000.0,0.00057,120]
[322091492,1712757081250,-150.0,0.00057,120]
[322091493,1712757081260,-300.0,0.00057,120]
[322091494,1712757081270,-196.81217972,0.00057,120]
[322091495,1712757081280,-2100.000009,0.00057,30]
[322091496,1712757081289,-240.0,0.00057,108]
[322091497,1712757081299,-151.0,0.00057,2]
[322091498,1712757081309,-151.0,0.00057,120]
[322091499,1712757081320,-577.309546,0.00057,120]
[322091500,1712757081330,-577.309546,0.00057,120]
[322091501,1712757081339,-151.0,0.00057,120]
[322091502,1712757081350,-7424.22238693,0.00057024,120]
[322091503,1712757081360,-3061.2331573,0.00057024,120]
[322091504,1712757081370,-562.11224117,0.00057024,120]
[322091505,1712757081381,-1960.2125078,0.00057024,120]
[322091506,1712757081392,-264.71111111,0.00057041,120]
[322091507,1712757081402,-1000.0,0.00057267,120]
[322091508,1712757081412,-161497.29,0.00057344,5]
[322091509,1712757081422,-164.0,0.00057413,28]
[322091510,1712757081433,-153.12,0.00057416,120]
[322091511,1712757081444,-2400.0,0.00057475,120]
[322091512,1712757081454,-200.0,0.00057499,120]
[322091513,1712757081464,-240.0,0.000575,109]
[322091514,1712757081475,-2500.0,0.000575,120]
[322091515,1712757081485,-7424.22238693,0.00057522,120]
[322091516,1712757081498,-3061.2331573,0.00057522,120]
[322091517,1712757081508,-562.11224117,0.00057522,120]
[322091518,1712757081518,-1960.2125078,0.00057522,120]
[322091519,1712757081528,-200.0,0.00057534,120]
[322091520,1712757081538,-200.0,0.00057534,120]
[322091521,1712757081548,-500.0,0.00057534,120]
[322091522,1712757081559,-419.0,0.000576,30]
[322091523,1712757081569,-264.71111111,0.00057644,120]
[322091524,1712757081579,-151.91320181,0.00057653,73]
[322091525,1712757081591,-32938.37,0.0005769,5]
[322091526,1712757081601,-299.999999,0.000577,30]
[322091527,1712757081611,-150.0,0.00057843,120]
[322091528,1712757081622,-151.0,0.00057863,120]
[322091529,1712757081633,-290630.58,0.00057947,5]
[322091530,1712757081644,-42043.89,0.00057947,5]
[322091531,1712757081654,-11849.19,0.00057947,5]
[322091532,1712757081665,-30738.7,0.00057947,5]
[322091533,1712757081676,-57004.01,0.00057947,5]
[322091534,1712757081686,-17812.17,0.00057947,5]
[322091535,1712757081696,-26103.89,0.00057947,5]
[322091536,1712757081707,-11037.87,0.00057947,5]
[322091537,1712757081717,-110615.62,0.00057947,5]
[322091538,1712757081727,-24151.56,0.00057947,5]
[322091539,1712757081737,-56003.55,0.00057947,5]
[322091540,1712757081749,-5567.97,0.00057947,5]
[322091541,1712757081759,-62093.76,0.00057947,5]
[322091542,1712757081769,-17597.59359441,0.0005799,30]
[322091543,1712757081779,-1000.0,0.00057999,120]
[322091544,1712757081789,-100000.0,0.00058,58]
[322091545,1712757081800,-2000.0,0.00058,120]
[322091546,1712757081810,-150.0,0.00058,120]
[322091547,1712757081820,-150.0,0.00058,120]
[322091548,1712757081831,-1001.72534842,0.00058,50]
[322091549,1712757081841,-150.0,0.00058,120]
[322091550,1712757081851,-105925.61702613,0.00058,7]
[322091551,1712757081862,-11601.69970523,0.00058,120]
[322091552,1712757081872,-4717.15212807,0.00058,120]
[322091553,1712757081881,-224.49,0.00058,120]
[322091554,1712757081892,-777.0,0.00058,60]
[322091555,1712757081902,-240.0,0.00058,110]
[322091556,1712757081912,-151.0,0.00058,120]
[322091557,1712757081921,-151.0,0.00058,30]
[322091558,1712757081932,-151.0,0.00058,120]
[322091559,1712757081942,-7424.22238693,0.00058021,120]
[322091560,1712757081952,-3061.2331573,0.00058021,120]
[322091561,1712757081961,-562.11224117,0.00058021,120]
[322091562,1712757081971,-1960.2125078,0.00058021,120]
[322091563,1712757081981,-500.0,0.00058029,120]
[322091564,1712757081991,-250000.0,0.000581,70]
[322091565,1712757082003,-264.71111111,0.00058247,120]
[322091566,1712757082013,-1030.0,0.00058275,120]
[322091567,1712757082025,-250000.0,0.000583,70]
[322091568,1712757082035,-1000.0,0.000583,7]
[322091569,1712757082045,-240.0,0.000585,111]